[Event "Chpt Reg Jeunes Occitanie 2026 - Espalion"]
[Site "Espalion, France"]
[Round "3.11"]
[ECO "?"]
[Annotator "?"]
[TimeControl "1h30 + 30sec/cp"]

1. d4 Nf6 2. c4 e6 3. Nc3 Bb4 4. f3 d5 5. a3 Bxc3+ 6. bxc3 O-O 7. cxd5 {[%clk
1:30:30]} 7... exd5 {[%clk 1:30:30]} 8. e3 {[%clk 1:31:28]} 8... Bf5 {[%clk
1:30:48][%emt 0:00:32]} 9. Ne2 {[%clk 1:30:35][%emt 0:01:22]} 9... Re8 {[%clk
1:30:40][%emt 0:00:39]} 10. Ng3 {[%clk 1:28:57][%emt 0:02:08]} 10... Bg6
{[%clk 1:30:18][%emt 0:00:52]} 11. Bd3 {[%clk 1:28:21][%emt 0:01:06]} 11...
Nh5 {[%clk 1:25:15][%emt 0:05:33]} 12. Nxh5 {[%clk 1:17:34][%emt 0:11:16]}
12... Bxh5 {[%clk 1:25:28][%emt 0:00:17]} 13. O-O {[%clk 1:14:53][%emt
0:03:10]} 13... c6 {[%clk 1:18:58][%emt 0:07:01]} 14. Ra2 {[%clk 1:11:47][%emt
0:03:36]} 14... Nd7 {[%clk 1:16:29][%emt 0:02:59]} 15. Re2 {[%clk
1:04:25][%emt 0:07:51]} 15... Nf6 {[%clk 1:12:40][%emt 0:04:19]} 16. Qc2
{[%clk 0:55:50][%emt 0:09:05]} 16... Qc7 {[%clk 1:10:27][%emt 0:02:44]} 17.
Ree1 {[%clk 0:52:49][%emt 0:03:29]} 17... c5 {[%clk 1:07:32][%emt 0:03:26]}
18. Qf2 {[%clk 0:45:52][%emt 0:07:27]} 18... Bg6 {[%clk 1:02:25][%emt 0:05:37]}
 19. Bxg6 {[%clk 0:43:33][%emt 0:02:49]} 19... hxg6 {[%clk 1:02:08][%emt
0:00:48]} 20. g4 {[%clk 0:41:01][%emt 0:03:01]} 20... Rac8 {[%clk
0:58:16][%emt 0:04:21]} 21. g5 {[%clk 0:37:19][%emt 0:04:12]} 21... Nh5 {[%clk
0:58:09][%emt 0:00:38]} 22. e4 {[%clk 0:31:43][%emt 0:06:07]} 22... cxd4
{[%clk 0:47:21][%emt 0:11:18]} 23. cxd4 {[%clk 0:29:58][%emt 0:02:12]} 23...
Qd6 {[%clk 0:44:49][%emt 0:03:04]} 24. Qb2 {[%clk 0:21:07][%emt 0:09:21]}
24... b6 {[%clk 0:39:31][%emt 0:05:48]} 25. Bd2 {[%clk 0:19:55][%emt 0:01:42]}
25... Nf4 {[%clk 0:38:07][%emt 0:01:54]} 26. e5 {[%clk 0:18:36][%emt 0:01:50]}
26... Nh3+ {[%clk 0:37:20][%emt 0:01:16]} 27. Kg2 {[%clk 0:18:39][%emt
0:00:28]} 27... Qe6 {[%clk 0:37:41][%emt 0:00:09]} 28. Qb1 {[%clk
0:12:49][%emt 0:06:20]} 28... Rc4 {[%clk 0:36:24][%emt 0:01:47]} 29. Qd3
{[%clk 0:12:04][%emt 0:01:15]} 29... Rec8 {[%clk 0:34:14][%emt 0:02:38]} 30.
Rc1 {[%clk 0:08:36][%emt 0:04:00]} 30... b5 {[%clk 0:33:29][%emt 0:01:15]} 31.
Kg3 {[%clk 0:06:52][%emt 0:02:13]} 31... Kh7 {[%clk 0:31:14][%emt 0:02:44]}
32. f4 {[%clk 0:05:36][%emt 0:01:47]} 32... Rh8 {[%clk 0:31:10][%emt 0:00:33]}
33. f5 {[%clk 0:05:31][%emt 0:00:36]} 33... gxf5 {[%clk 0:31:13][%emt 0:00:27]}
 34. Kxh3 {[%clk 0:05:43][%emt 0:00:18]} 34... Kg8+ {[%clk 0:31:15][%emt
0:00:27]} 35. Kg2 {[%clk 0:06:04][%emt 0:00:07]} 35... Rxd4 {[%clk
0:30:11][%emt 0:01:36]} 36. Qxd4 {[%clk 0:05:46][%emt 0:00:47]} 36... f4
{[%clk 0:30:29][%emt 0:00:12]} 37. Qxf4 {[%clk 0:05:17][%emt 0:00:59]} 37...
d4 {[%clk 0:30:36][%emt 0:00:24]} 38. Rc8+ {[%clk 0:05:04][%emt 0:00:43]}
38... Qxc8 {[%clk 0:30:54][%emt 0:00:11]} 39. Qxf7+ {[%clk 0:05:32][%emt
0:00:02]} 39... Kh7 {[%clk 0:31:04][%emt 0:00:20]} 40. Qh5+ {[%clk
0:05:56][%emt 0:00:06]} 40... Kg8 {[%clk 0:31:12][%emt 0:00:22]} 41. Qf7+
{[%clk 0:06:25][%emt 0:00:01]} 41... Kh7 {[%clk 0:31:23][%emt 0:00:19]} 42.
g6# {[%clk 0:06:18][%emt 0:00:07]} 1-0

[White "CASSANGERES, Charlie"]
[Black "VALMIR, Clovis"]
[WhiteElo "1700"]
[BlackElo "2006"]
[Result "0-1"]
[Date "2026.03.05"]

[Event "Chpt Reg Jeunes Occitanie 2026 - Espalion"]
[Site "Espalion, France"]
[Round "3.12"]
[ECO "?"]
[Annotator "?"]
[TimeControl "1h30 + 30sec/cp"]

1. d4 Nf6 2. c4 g6 3. Nc3 Bg7 4. Nf3 O-O 5. g3 d6 6. Bg2 c6 7. O-O {[%clk
1:30:30]} 7... Qa5 8. e4 {[%clk 1:31:30]} 8... Qh5 {[%clk 1:30:55]} 9. Qd3
{[%clk 1:30:11][%emt 0:01:47]} 9... e5 {[%clk 1:29:29][%emt 0:01:55]} 10. d5
{[%clk 1:29:08][%emt 0:01:34]} 10... cxd5 {[%clk 1:26:16][%emt 0:03:43]} 11.
cxd5 {[%clk 1:29:00][%emt 0:00:38]} 11... Na6 {[%clk 1:24:42][%emt 0:02:04]}
12. a3 {[%clk 1:24:46][%emt 0:04:44]} 12... Nc5 {[%clk 1:24:49][%emt 0:00:24]}
13. Qc2 {[%clk 1:25:03][%emt 0:00:12]} 13... a5 {[%clk 1:04:05][%emt 0:21:15]}
14. Be3 {[%clk 1:25:17][%emt 0:00:15]} 14... Bg4 {[%clk 1:03:23][%emt 0:01:12]}
 15. Bxc5 {[%clk 1:23:01][%emt 0:02:46]} 15... dxc5 {[%clk 1:03:36][%emt
0:00:17]} 16. Qd3 {[%clk 1:22:58][%emt 0:00:32]} 16... c4 {[%clk 1:03:04][%emt
0:01:03]} 17. Qe2 {[%clk 1:22:03][%emt 0:01:25]} 17... Ne8 {[%clk
1:02:31][%emt 0:01:03]} 18. Nd1 {[%clk 1:18:26][%emt 0:04:07]} 18... Nd6
{[%clk 1:01:52][%emt 0:01:10]} 19. Ne3 {[%clk 1:16:52][%emt 0:02:03]} 19... f5
{[%clk 1:00:19][%emt 0:02:03]} 20. h3 {[%clk 1:03:52][%emt 0:13:29]} 20...
Bxf3 {[%clk 0:37:41][%emt 0:23:09]} 21. Bxf3 {[%clk 1:04:10][%emt 0:00:12]}
21... Qxh3 {[%clk 0:37:53][%emt 0:00:18]} 22. Nxc4 {[%clk 1:02:48][%emt
0:01:53]} 22... Nb5 {[%clk 0:36:01][%emt 0:02:21]} 23. Bg2 {[%clk
1:01:20][%emt 0:01:57]} 23... Qh6 {[%clk 0:34:20][%emt 0:02:11]} 24. Rfd1
{[%clk 0:55:22][%emt 0:06:28]} 24... Nd4 {[%clk 0:34:02][%emt 0:00:49]} 25.
Qd3 {[%clk 0:55:00][%emt 0:00:51]} 25... f4 {[%clk 0:29:16][%emt 0:05:17]} 26.
Nd2 {[%clk 0:53:53][%emt 0:01:36]} 26... Qh5 {[%clk 0:27:04][%emt 0:02:42]}
27. Nf3 {[%clk 0:52:52][%emt 0:01:32]} 27... fxg3 {[%clk 0:27:17][%emt
0:00:16]} 28. Nxd4 {[%clk 0:51:35][%emt 0:01:47]} 28... Qh2+ {[%clk
0:27:38][%emt 0:00:09]} 29. Kf1 {[%clk 0:51:14][%emt 0:00:51]} 29... Rxf2+
{[%clk 0:27:57][%emt 0:00:11]} 30. Ke1 {[%clk 0:51:36][%emt 0:00:06]} 30...
Qg1+ {[%clk 0:28:03][%emt 0:00:25]} 31. Bf1 {[%clk 0:51:57][%emt 0:00:08]}
31... g2 {[%clk 0:28:28][%emt 0:00:07]} 0-1

[White "MARTINEZ, Julien"]
[Black "DUQUESNE, Basil"]
[WhiteElo "1920"]
[BlackElo "1701"]
[Result "1-0"]
[Date "2026.03.05"]

[Event "Chpt Reg Jeunes Occitanie 2026 - Espalion"]
[Site "Espalion, France"]
[Round "3.13"]
[ECO "?"]
[Annotator "?"]
[TimeControl "1h30 + 30sec/cp"]

1. d4 {[%clk 1:30:30]} 1... Nf6 {[%clk 1:30:30]} 2. Bf4 {[%clk 1:30:30]} 2...
g6 {[%clk 1:30:30]} 3. e3 {[%clk 1:30:30]} 3... Bg7 {[%clk 1:30:30]} 4. Nf3
{[%clk 1:30:30]} 4... O-O {[%clk 1:30:30]} 5. Be2 {[%clk 1:30:30]} 5... d6
{[%clk 1:30:30]} 6. h3 {[%clk 1:30:30]} 6... Nbd7 {[%clk 1:30:30]} 7. O-O
{[%clk 1:30:30]} 7... c5 {[%clk 1:30:30]} 8. c3 a6 9. Qb3 {[%clk 1:29:29][%emt
0:02:02]} 9... Rb8 {[%clk 1:27:48][%emt 0:04:04]} 10. a4 {[%clk 1:25:20][%emt
0:04:39]} 10... b6 {[%clk 1:24:17][%emt 0:04:01]} 11. Bh2 {[%clk 1:24:41][%emt
0:01:09]} 11... Qc7 {[%clk 1:20:27][%emt 0:04:20]} 12. Nbd2 {[%clk
1:23:44][%emt 0:01:26]} 12... Bb7 {[%clk 1:19:21][%emt 0:01:37]} 13. Qa3
{[%clk 1:22:51][%emt 0:01:19]} 13... e5 {[%clk 1:08:23][%emt 0:11:31]} 14.
dxe5 {[%clk 1:20:23][%emt 0:02:58]} 14... Nxe5 {[%clk 1:05:32][%emt 0:03:22]}
15. Nxe5 {[%clk 1:20:23][%emt 0:00:30]} 15... dxe5 {[%clk 1:05:40][%emt
0:00:22]} 16. b4 {[%clk 1:20:40][%emt 0:00:13]} 16... Rfe8 {[%clk
1:00:50][%emt 0:05:21]} 17. a5 {[%clk 1:04:26][%emt 0:16:43]} 17... cxb4
{[%clk 0:53:11][%emt 0:08:09]} 18. cxb4 {[%clk 1:03:54][%emt 0:01:01]} 18...
b5 {[%clk 0:51:13][%emt 0:02:28]} 19. Rac1 {[%clk 1:03:46][%emt 0:00:37]}
19... Qd6 {[%clk 0:49:20][%emt 0:02:24]} 20. Nb3 {[%clk 1:02:45][%emt 0:01:29]}
 20... Rbc8 {[%clk 0:40:10][%emt 0:09:42]} 21. Nc5 {[%clk 1:02:48][%emt
0:00:27]} 21... Qe7 {[%clk 0:37:00][%emt 0:03:40]} 22. Bxe5 {[%clk
1:01:14][%emt 0:02:04]} 22... Qxe5 {[%clk 0:32:46][%emt 0:04:44]} 23. Nxb7
{[%clk 1:01:19][%emt 0:00:25]} 23... Bf8 {[%clk 0:31:38][%emt 0:01:37]} 24.
Nc5 {[%clk 1:00:25][%emt 0:01:24]} 24... Bxc5 {[%clk 0:30:33][%emt 0:01:36]}
25. Rxc5 {[%clk 1:00:45][%emt 0:00:09]} 25... Rxc5 {[%clk 0:30:22][%emt
0:00:42]} 26. bxc5 {[%clk 1:01:08][%emt 0:00:07]} 26... Rc8 {[%clk
0:30:08][%emt 0:00:44]} 27. Rc1 {[%clk 1:01:29][%emt 0:00:07]} 27... Ne4
{[%clk 0:28:12][%emt 0:02:27]} 28. c6 {[%clk 1:01:19][%emt 0:00:41]} 28... Qd6
{[%clk 0:23:29][%emt 0:05:13]} 29. Qxd6 {[%clk 1:01:14][%emt 0:00:35]} 29...
Nxd6 {[%clk 0:23:45][%emt 0:00:14]} 30. Rc5 {[%clk 0:59:43][%emt 0:02:00]}
30... Rc7 {[%clk 0:22:47][%emt 0:01:29]} 31. Bd3 {[%clk 0:51:28][%emt 0:08:41]}
 31... Kf8 {[%clk 0:20:12][%emt 0:03:09]} 32. e4 {[%clk 0:51:23][%emt 0:00:35]}
 32... Ke7 {[%clk 0:15:49][%emt 0:04:52]} 33. e5 {[%clk 0:51:13][%emt 0:00:38]}
 33... Ne8 {[%clk 0:15:04][%emt 0:01:18]} 34. Be4 {[%clk 0:50:52][%emt
0:00:48]} 34... Ng7 {[%clk 0:13:59][%emt 0:01:37]} 35. Bd5 {[%clk
0:49:24][%emt 0:01:57]} 35... Ne6 {[%clk 0:13:15][%emt 0:01:14]} 36. Bxe6
{[%clk 0:49:42][%emt 0:00:13]} 36... Kxe6 {[%clk 0:13:29][%emt 0:00:17]} 37.
g4 {[%clk 0:49:34][%emt 0:00:38]} 37... g5 {[%clk 0:13:10][%emt 0:00:49]} 38.
h4 {[%clk 0:47:33][%emt 0:02:31]} 38... h6 {[%clk 0:12:28][%emt 0:01:11]} 39.
hxg5 {[%clk 0:47:47][%emt 0:00:17]} 39... hxg5 {[%clk 0:12:57][%emt 0:00:01]}
40. Kf1 {[%clk 0:47:58][%emt 0:00:18]} 40... Rc8 {[%clk 0:09:10][%emt 0:04:17]}
 41. Ke2 {[%clk 0:48:03][%emt 0:00:23]} 41... Rd8 {[%clk 0:08:34][%emt
0:01:07]} 42. Ke3 {[%clk 0:47:30][%emt 0:01:03]} 42... b4 {[%clk 0:08:51][%emt
0:00:14]} 43. c7 {[%clk 0:47:19][%emt 0:00:41]} 43... Rc8 {[%clk 0:08:59][%emt
0:00:21]} 44. Kd4 {[%clk 0:47:38][%emt 0:00:09]} 44... b3 {[%clk 0:08:37][%emt
0:00:54]} 45. Kc3 {[%clk 0:47:37][%emt 0:00:31]} 45... Kd7 {[%clk
0:07:46][%emt 0:01:21]} 46. Kxb3 {[%clk 0:47:41][%emt 0:00:26]} 46... Rxc7
{[%clk 0:07:25][%emt 0:00:51]} 47. Rxc7+ {[%clk 0:48:04][%emt 0:00:05]} 47...
Kxc7 {[%clk 0:07:50][%emt 0:00:05]} 48. Kb4 {[%clk 0:48:25][%emt 0:00:10]}
48... Kb7 {[%clk 0:07:16][%emt 0:01:04]} 49. Kc5 {[%clk 0:48:46][%emt 0:00:09]}
 49... Kc7 {[%clk 0:07:34][%emt 0:00:12]} 50. f3 {[%clk 0:48:56][%emt 0:00:20]}
 50... Kd7 {[%clk 0:07:46][%emt 0:00:18]} 51. Kb6 {[%clk 0:49:17][%emt
0:00:09]} 51... Ke6 {[%clk 0:08:13][%emt 0:00:03]} 52. Kxa6 {[%clk
0:49:39][%emt 0:00:08]} 52... Kxe5 {[%clk 0:08:40][%emt 0:00:03]} 53. Kb6
{[%clk 0:49:59][%emt 0:00:07]} 53... f5 {[%clk 0:08:41][%emt 0:00:31]} 54.
gxf5 {[%clk 0:50:11][%emt 0:00:18]} 54... Kxf5 {[%clk 0:09:00][%emt 0:00:12]}
55. a6 {[%clk 0:50:28][%emt 0:00:13]} 55... Kf4 {[%clk 0:09:26][%emt 0:00:04]}
56. a7 {[%clk 0:50:38][%emt 0:00:20]} 56... Kxf3 {[%clk 0:09:51][%emt 0:00:05]}
 57. a8=Q+ {[%clk 0:50:59][%emt 0:00:09]} 1-0

[White "PIERROT, Anais"]
[Black "VILLEMIN CHARTIER, Elias"]
[WhiteElo "1698"]
[BlackElo "1900"]
[Result "0-1"]
[Date "2026.03.05"]

[Event "Chpt Reg Jeunes Occitanie 2026 - Espalion"]
[Site "Espalion, France"]
[Round "3.14"]
[ECO "?"]
[Annotator "?"]
[TimeControl "1h30 + 30sec/cp"]

1. e4 e5 2. Nf3 Nf6 3. Nxe5 d6 4. Nf3 Nxe4 5. Nc3 Nxc3 6. dxc3 Nd7 7. Be3
{[%clk 1:29:16]} 7... Be7 {[%clk 1:32:10]} 8. Qd2 {[%clk 1:24:22][%emt
0:05:22]} 8... Nf6 {[%clk 1:30:02][%emt 0:02:39]} 9. Bd3 {[%clk 1:21:23][%emt
0:03:29]} 9... Be6 {[%clk 1:29:31][%emt 0:01:01]} 10. Nd4 {[%clk 1:15:55][%emt
0:05:58]} 10... O-O {[%clk 1:28:28][%emt 0:01:32]} 11. Nxe6 {[%clk
1:08:49][%emt 0:07:36]} 11... fxe6 {[%clk 1:28:46][%emt 0:00:13]} 12. f3
{[%clk 1:06:55][%emt 0:02:24]} 12... Nd5 {[%clk 1:28:10][%emt 0:01:06]} 13.
O-O-O {[%clk 1:05:14][%emt 0:02:11]} 13... Nxe3 {[%clk 1:28:30][%emt 0:00:09]}
14. Rde1 {[%clk 0:48:16][%emt 0:17:28]} 14... Bg5 {[%clk 1:28:29][%emt
0:00:32]} 15. Rxe3 {[%clk 0:36:18][%emt 0:12:27]} 15... Bxe3 {[%clk
1:28:57][%emt 0:00:02]} 16. Qxe3 {[%clk 0:36:37][%emt 0:00:11]} 16... Qf6
{[%clk 1:29:22][%emt 0:00:05]} 17. Kb1 {[%clk 0:35:22][%emt 0:01:45]} 17...
Rae8 {[%clk 1:29:22][%emt 0:00:31]} 18. Qe4 {[%clk 0:33:44][%emt 0:02:08]}
18... g6 {[%clk 1:29:19][%emt 0:00:33]} 19. h4 {[%clk 0:31:45][%emt 0:02:29]}
19... d5 {[%clk 1:28:56][%emt 0:00:53]} 20. Qg4 {[%clk 0:30:01][%emt 0:02:13]}
20... Qf4 {[%clk 1:28:32][%emt 0:00:55]} 21. Qh3 {[%clk 0:28:43][%emt 0:01:48]}
 21... e5 {[%clk 1:26:34][%emt 0:02:28]} 22. h5 {[%clk 0:23:08][%emt 0:06:05]}
22... g5 {[%clk 1:26:52][%emt 0:00:12]} 23. Qd7 {[%clk 0:20:45][%emt 0:02:53]}
23... Qf7 {[%clk 1:26:41][%emt 0:00:41]} 24. Qg4 {[%emt 0:00:28]} 24... Qe7
{[%clk 1:24:50][%emt 0:02:19]} 25. h6 {[%clk 0:15:44][%emt 0:05:35]} 25... e4
{[%clk 1:23:52][%emt 0:01:28]} 26. fxe4 {[%clk 0:12:39][%emt 0:03:36]} 26...
dxe4 {[%clk 1:23:59][%emt 0:00:22]} 27. Bc4+ {[%clk 0:12:45][%emt 0:00:24]}
27... Kh8 {[%clk 1:24:08][%emt 0:00:21]} 28. Re1 {[%clk 0:04:53][%emt 0:08:22]}
 28... Rf4 {[%clk 1:23:31][%emt 0:01:07]} 29. Qe2 {[%clk 0:01:47][%emt
0:03:36]} 29... e3 {[%clk 1:23:00][%emt 0:01:00]} 30. g3 {[%clk 0:00:56][%emt
0:01:22]} 30... Rf2 {[%clk 1:22:41][%emt 0:00:49]} 31. Qg4 {[%clk
0:00:38][%emt 0:00:48]} 31... Qe4 {[%clk 1:21:57][%emt 0:01:14]} 32. Qxe4
{[%clk 0:00:50][%emt 0:00:18]} 32... Rxe4 {[%clk 1:22:27]} 33. Bd5 {[%clk
0:00:54][%emt 0:00:25]} 33... Re5 {[%clk 1:22:34][%emt 0:00:22]} 34. Bc4
{[%clk 0:00:40][%emt 0:00:45]} 34... e2 {[%clk 1:22:56][%emt 0:00:08]} 35. Kc1
{[%clk 0:00:44][%emt 0:00:26]} 35... Rf1 {[%clk 1:23:24][%emt 0:00:02]} 36.
Kd2 {[%clk 0:00:41][%emt 0:00:33]} 36... Rxe1 {[%clk 1:23:49][%emt 0:00:06]}
37. Kxe1 {[%clk 0:01:07][%emt 0:00:03]} 37... Re3 {[%clk 1:24:15][%emt
0:00:05]} 38. g4 {[%clk 0:01:14][%emt 0:00:23]} 38... Rh3 {[%clk 1:24:24][%emt
0:00:20]} 39. Bxe2 {[%clk 0:01:39][%emt 0:00:06]} 39... Rxh6 {[%clk
1:24:49][%emt 0:00:05]} 40. Bd3 {[%clk 0:01:31][%emt 0:00:38]} 40... Kg7
{[%clk 1:25:10][%emt 0:00:09]} 41. Kf2 {[%clk 0:01:33][%emt 0:00:27]} 41...
Kf6 {[%clk 1:25:27][%emt 0:00:13]} 42. Kf3 {[%clk 0:00:59][%emt 0:01:04]}
42... Ke5 {[%clk 1:25:51][%emt 0:00:07]} 43. Ke3 {[%clk 0:01:13][%emt 0:00:16]}
 43... Rh3+ {[%clk 1:26:15][%emt 0:00:06]} 44. Kf2 {[%clk 0:01:36][%emt
0:00:07]} 44... Kf4 {[%clk 1:26:41][%emt 0:00:03]} 45. Kg2 {[%clk
0:01:06][%emt 0:01:00]} 45... Rg3+ {[%clk 1:27:10][%emt 0:00:01]} 46. Kf2
{[%clk 0:01:29][%emt 0:00:08]} 46... Rxg4 {[%clk 1:27:38][%emt 0:00:02]} 47.
Bxh7 {[%clk 0:01:35][%emt 0:00:23]} 47... Rh4 {[%clk 1:28:07][%emt 0:00:02]}
48. Bd3 {[%clk 0:01:12][%emt 0:00:53]} 48... Rh2+ {[%clk 1:28:36]} 49. Ke1
{[%clk 0:01:08][%emt 0:00:33]} 49... g4 {[%clk 1:28:57][%emt 0:00:10]} 50. a3
{[%clk 0:01:02][%emt 0:00:36]} 50... g3 {[%clk 1:29:22][%emt 0:00:05]} 51. Kf1
{[%clk 0:01:18][%emt 0:00:13]} 51... Kf3 {[%clk 1:29:43]} 0-1

[White "SARDARYAN, Arman"]
[Black "URIBE, Tunweya"]
[WhiteElo "1698"]
[BlackElo "1786"]
[Result "0-1"]
[Date "2026.03.05"]

[Event "Chpt Reg Jeunes Occitanie 2026 - Espalion"]
[Site "Espalion, France"]
[Round "3.15"]
[ECO "?"]
[Annotator "?"]
[TimeControl "1h30 + 30sec/cp"]

1. e4 c5 2. Nf3 e6 3. c3 {[%clk 1:30:30]} 3... d5 {[%clk 1:30:30]} 4. e5
{[%clk 1:29:07]} 4... d4 {[%clk 1:29:34]} 5. cxd4 {[%clk 1:28:41][%emt
0:00:43]} 5... cxd4 {[%clk 1:29:32][%emt 0:00:37]} 6. Qa4+ {[%clk
1:27:47][%emt 0:01:19]} 6... Nc6 {[%clk 1:19:51][%emt 0:10:18]} 7. Bb5 {[%clk
1:26:45][%emt 0:01:24]} 7... Bd7 {[%clk 1:03:33][%emt 0:16:55]} 8. Bxc6 {[%clk
1:22:58][%emt 0:04:10]} 8... Bxc6 {[%clk 1:04:03]} 9. Qxd4 {[%clk
1:23:08][%emt 0:00:21]} 9... Qa5 {[%clk 0:59:41][%emt 0:04:59]} 10. Qc3 {[%clk
1:21:36][%emt 0:01:54]} 10... Bb4 {[%clk 0:56:18][%emt 0:04:00]} 11. Qe3
{[%clk 1:18:29][%emt 0:03:08]} 11... Ne7 {[%clk 0:55:59][%emt 0:01:18]} 12.
O-O {[%clk 1:18:13][%emt 0:00:42]} 12... O-O {[%clk 0:55:03][%emt 0:01:31]}
13. Nc3 {[%clk 1:17:28][%emt 0:01:08]} 13... Nf5 {[%clk 0:54:00][%emt 0:01:39]}
 14. Qf4 {[%clk 1:17:04][%emt 0:00:46]} 14... Rfd8 {[%clk 0:52:07][%emt
0:02:30]} 15. a3 {[%clk 1:17:01][%emt 0:00:34]} 15... Be7 {[%clk 0:51:19][%emt
0:01:18]} 16. Re1 {[%clk 1:17:00][%emt 0:00:24]} 16... Rd3 {[%clk
0:43:40][%emt 0:08:16]} 17. Ne4 {[%clk 1:12:21][%emt 0:05:09]} 17... Rad8
{[%clk 0:40:49][%emt 0:03:21]} 18. b4 {[%clk 1:09:10][%emt 0:03:42]} 18... Qb6
{[%clk 0:35:34][%emt 0:05:45]} 19. Bb2 {[%clk 1:08:56][%emt 0:00:38]} 19... a5
{[%clk 0:34:25][%emt 0:01:44]} 20. Bc3 {[%clk 1:08:45][%emt 0:00:35]} 20...
axb4 {[%clk 0:33:00][%emt 0:02:01]} 21. axb4 {[%clk 1:07:44][%emt 0:01:25]}
21... Bf8 {[%clk 0:29:12][%emt 0:04:25]} 22. g4 {[%clk 1:07:02][%emt 0:01:12]}
22... Ne7 {[%clk 0:28:30][%emt 0:01:11]} 23. Nfg5 {[%clk 1:06:31][%emt
0:00:52]} 23... f5 {[%clk 0:24:25][%emt 0:04:46]} 24. exf6 {[%clk
1:05:50][%emt 0:01:00]} 24... Ng6 {[%clk 0:22:21][%emt 0:02:45]} 25. f7+
{[%clk 1:02:45][%emt 0:03:35]} 25... Kh8 {[%clk 0:22:45][%emt 0:00:04]} 26.
Bxg7+ {[%clk 1:01:56][%emt 0:01:12]} 26... Bxg7 {[%clk 0:22:06][%emt 0:01:15]}
27. f8=Q+ {[%clk 1:00:09][%emt 0:02:19]} 27... Rxf8 {[%clk 0:20:44][%emt
0:01:53]} 28. Nf7+ {[%clk 0:56:27][%emt 0:04:11]} 28... Kg8 {[%clk
0:16:59][%emt 0:04:15]} 29. Nf6+ {[%clk 0:56:08][%emt 0:00:44]} 29... Kxf7
{[%clk 0:07:41][%emt 0:09:53]} 30. Qc4 {[%clk 0:55:45][%emt 0:00:53]} 30...
Bxf6 {[%clk 0:06:35][%emt 0:01:36]} 31. Qxe6+ {[%clk 0:53:38][%emt 0:02:36]}
31... Kg7 {[%clk 0:06:56][%emt 0:00:09]} 32. Ra5 {[%clk 0:51:54][%emt 0:02:15]}
 32... Re8 {[%clk 0:06:43][%emt 0:00:43]} 33. Qxe8 {[%clk 0:52:00][%emt
0:00:24]} 33... Bxe8 {[%clk 0:07:07][%emt 0:00:06]} 34. Rxe8 {[%clk
0:52:18][%emt 0:00:11]} 34... Qxb4 {[%clk 0:07:12][%emt 0:00:24]} 35. Ra7
{[%clk 0:52:37][%emt 0:00:12]} 35... Qxg4+ {[%clk 0:07:28][%emt 0:00:13]} 36.
Kf1 {[%clk 0:52:59][%emt 0:00:09]} 36... Rxd2 {[%clk 0:07:31][%emt 0:00:28]}
37. Rxb7+ {[%clk 0:53:18][%emt 0:00:10]} 37... Rd7 {[%clk 0:07:22][%emt
0:00:38]} 38. Rb1 {[%clk 0:53:31][%emt 0:00:10]} 38... Rd1+ {[%clk
0:07:49][%emt 0:00:11]} 39. Rxd1 {[%emt 0:00:07]} 39... Qxd1+ {[%emt 0:00:04]}
40. Kg2 {[%clk 0:53:39][%emt 0:00:11]} 40... Qd5+ {[%clk 0:07:51][%emt
0:00:28]} 41. Kg3 {[%clk 0:53:52][%emt 0:00:16]} 41... Bh4+ {[%clk
0:08:04][%emt 0:00:17]} 42. Kg4 {[%clk 0:54:08][%emt 0:00:15]} 42... h5+
{[%clk 0:08:09][%emt 0:00:24]} 43. Kh3 {[%clk 0:54:27][%emt 0:00:12]} 43...
Qf3# {[%emt 0:00:27]} 0-1

[White "URIBE, Tunweya"]
[Black "BAUER, Pierre"]
[WhiteElo "1786"]
[BlackElo "2174"]
[Result "0-1"]
[Date "2026.03.05"]